bitfinex/quotes_BTCUSD_20240728
["timestamp","ask_amount","ask_price","bid_price","bid_amount"]
[1722165795475,0.00831,67875.0,67874.0,1.98841871]
[1722165797021,0.00831,67875.0,67874.0,2.22614871]
[1722165798125,0.00831,67875.0,67874.0,2.21214871]
[1722165798378,0.00831,67875.0,67874.0,2.21214937]
[1722165798604,0.00831,67875.0,67874.0,2.19814937]
[1722165798737,0.00831,67875.0,67874.0,2.21214937]
[1722165799232,0.00831,67875.0,67874.0,2.19814937]
[1722165799439,0.00831,67875.0,67874.0,2.21214937]
[1722165799835,0.00831,67875.0,67874.0,2.22614937]
[1722165800038,0.00831,67875.0,67874.0,2.21214937]
[1722165800644,0.00831,67875.0,67874.0,2.22614937]
[1722165801418,0.00831,67875.0,67874.0,2.19814937]
[1722165801693,0.00831,67875.0,67874.0,2.10373088]
[1722165801925,0.00831,67875.0,67874.0,2.22614614]
[1722165802097,0.00831,67875.0,67874.0,2.21014614]
[1722165802300,0.00831,67875.0,67874.0,2.21014786]
[1722165802528,0.00831,67875.0,67874.0,2.22414786]
[1722165802731,0.00831,67875.0,67874.0,2.24764786]
[1722165803086,0.00831,67875.0,67874.0,2.22164786]
[1722165803291,0.00831,67875.0,67874.0,2.23564786]
[1722165804193,0.00831,67875.0,67874.0,2.22164786]
[1722165804396,0.00831,67875.0,67874.0,2.22164319]
[1722165804607,0.00831,67875.0,67874.0,2.24964319]
[1722165805110,0.00831,67875.0,67874.0,2.23564319]
[1722165805314,0.00831,67875.0,67874.0,1.99764319]
[1722165805515,0.00831,67875.0,67874.0,2.08635319]
[1722165805680,0.00831,67875.0,67874.0,2.33835319]
[1722165805884,0.00831,67875.0,67874.0,2.56008319]
[1722165806088,0.00831,67875.0,67874.0,2.39955459]
[1722165806387,0.00831,67875.0,67874.0,2.32435319]
[1722165806602,0.00831,67875.0,67874.0,2.36135319]
[1722165806822,0.00831,67875.0,67874.0,2.42255492]
[1722165807027,0.00831,67875.0,67874.0,2.40855467]
[1722165807234,0.00831,67875.0,67874.0,2.42255467]
[1722165807356,0.00831,67875.0,67874.0,2.36135319]
[1722165807558,0.00831,67875.0,67874.0,2.34735319]
[1722165807919,0.00831,67875.0,67874.0,2.36135319]
[1722165808347,0.00831,67875.0,67874.0,2.36134772]
[1722165808941,0.00831,67875.0,67874.0,2.35934772]
[1722165809299,0.00831,67875.0,67874.0,2.36134772]
[1722165810366,0.00831,67875.0,67874.0,2.35934772]
[1722165810574,0.00831,67875.0,67874.0,2.10934772]
[1722165810951,0.00831,67875.0,67874.0,2.36134772]
[1722165811519,0.00831,67875.0,67874.0,2.35934772]
[1722165811653,0.00831,67875.0,67874.0,2.35935209]
[1722165811854,0.00831,67875.0,67874.0,2.26161557]
[1722165812089,0.00831,67875.0,67874.0,2.26161556]
[1722165814282,0.00831,67875.0,67874.0,2.23861556]
[1722165814786,0.00831,67875.0,67874.0,2.23861805]
[1722165815148,0.00017797,67881.0,67880.0,1.490405]
[1722165815315,0.00017797,67881.0,67880.0,1.86307826]
[1722165815715,0.00017797,67881.0,67880.0,1.92427591]
[1722165816134,0.00017797,67881.0,67880.0,1.86307826]
[1722165816401,9.7e-07,67881.0,67880.0,2.52598591]
[1722165816528,9.7e-07,67881.0,67880.0,2.47378826]
[1722165816727,9.7e-07,67881.0,67880.0,2.53498542]
[1722165817050,9.7e-07,67881.0,67880.0,2.79314542]
[1722165817573,9.7e-07,67881.0,67880.0,2.62364542]
[1722165817992,9.7e-07,67881.0,67880.0,2.45403457]
[1722165818197,9.7e-07,67881.0,67880.0,2.62662563]
[1722165818402,9.7e-07,67881.0,67880.0,2.61262563]
[1722165818610,9.7e-07,67881.0,67880.0,2.61462563]
[1722165818822,9.7e-07,67881.0,67880.0,2.62862563]
[1722165819028,9.7e-07,67881.0,67880.0,2.37662563]
[1722165819266,9.7e-07,67881.0,67880.0,2.62862563]
[1722165820061,9.7e-07,67881.0,67880.0,2.61462563]
[1722165820521,9.7e-07,67881.0,67880.0,2.62862563]
[1722165821369,9.7e-07,67881.0,67880.0,2.62862871]
[1722165821756,9.7e-07,67881.0,67880.0,2.50623159]
[1722165821962,9.7e-07,67881.0,67880.0,2.62862908]
[1722165822423,9.7e-07,67881.0,67880.0,2.56743206]
[1722165824610,9.7e-07,67881.0,67880.0,2.61140223]
[1722165824970,9.7e-07,67881.0,67880.0,2.63440223]
[1722165825176,9.7e-07,67881.0,67880.0,2.65162929]
[1722165826186,9.7e-07,67881.0,67880.0,2.62362929]
[1722165826385,9.7e-07,67881.0,67880.0,3.00190385]
[1722165826713,9.7e-07,67881.0,67880.0,3.02990385]
[1722165827059,9.7e-07,67881.0,67880.0,3.16889395]
[1722165827304,9.7e-07,67881.0,67880.0,3.2568362]
[1722165827446,9.7e-07,67881.0,67880.0,3.20538483]
[1722165827651,9.7e-07,67881.0,67880.0,3.21938483]
[1722165827857,9.7e-07,67881.0,67880.0,3.15814686]
[1722165828019,9.7e-07,67881.0,67880.0,3.19134203]
[1722165828441,9.7e-07,67881.0,67880.0,3.34684203]
[1722165829416,9.7e-07,67881.0,67880.0,3.36084203]
[1722165829861,9.7e-07,67881.0,67880.0,3.34684203]
[1722165830070,9.7e-07,67881.0,67880.0,3.36084203]
[1722165830313,9.7e-07,67881.0,67880.0,3.37484203]
[1722165830866,9.7e-07,67881.0,67880.0,3.67192764]
[1722165831093,9.7e-07,67881.0,67880.0,3.22271984]
[1722165831315,9.7e-07,67881.0,67880.0,3.61070683]
[1722165831524,9.7e-07,67881.0,67880.0,3.6718985]
[1722165831754,9.7e-07,67881.0,67880.0,3.61070415]
[1722165831929,9.7e-07,67881.0,67880.0,3.59670415]
[1722165832232,9.7e-07,67881.0,67880.0,3.82740957]
[1722165832430,9.7e-07,67881.0,67880.0,3.47432153]
[1722165832642,9.7e-07,67881.0,67880.0,3.40589546]
[1722165832850,9.7e-07,67881.0,67880.0,3.65789546]
[1722165833068,9.7e-07,67881.0,67880.0,3.64389546]
[1722165833284,9.7e-07,67881.0,67880.0,3.65789546]
[1722165833519,9.7e-07,67881.0,67880.0,3.67189546]
[1722165833918,9.7e-07,67881.0,67880.0,3.84145366]
[1722165834554,9.7e-07,67881.0,67880.0,3.78025342]
[1722165834766,9.7e-07,67881.0,67880.0,3.84144159]
[1722165835007,0.00831,67900.0,67898.0,1.346058]
[1722165835210,0.00831,67900.0,67898.0,1.96869392]
[1722165835642,0.00831,67900.0,67898.0,1.71869392]
[1722165836257,0.00831,67900.0,67898.0,1.96869392]
[1722165836455,0.00831,67900.0,67898.0,1.73269392]
[1722165836800,0.00831,67900.0,67898.0,1.70958306]
[1722165837517,0.00831,67900.0,67898.0,1.72358306]
[1722165837761,0.00831,67900.0,67898.0,1.60120671]
[1722165837964,0.00831,67900.0,67898.0,1.72358114]
[1722165838264,0.00831,67900.0,67898.0,1.461045]
[1722165838265,0.16561365,67899.0,67898.0,1.461045]
[1722165841770,0.16561365,67899.0,67898.0,1.520061]
[1722165843351,0.16561365,67899.0,67898.0,1.52006462]
[1722165844489,0.16561365,67899.0,67898.0,1.39768657]
[1722165844660,0.16561365,67899.0,67898.0,1.33867057]
[1722165847707,0.16561365,67899.0,67898.0,1.46990094]
[1722165848285,0.16561365,67899.0,67898.0,1.31964137]
[1722165848493,0.16561365,67899.0,67898.0,1.19725764]
[1722165850072,0.16561365,67899.0,67898.0,0.96161064]
[1722165855491,0.16561365,67899.0,67898.0,1.87134052]
[1722165855492,0.02811365,67899.0,67898.0,1.87134052]
[1722165855743,0.00831,67901.0,67900.0,0.14470914]
[1722165855925,0.00202106,67901.0,67900.0,1.23863588]
[1722165856206,0.00202106,67901.0,67900.0,1.70991588]
[1722165856408,0.00202106,67901.0,67900.0,1.94555588]
[1722165856676,0.00202106,67901.0,67900.0,2.08643606]
[1722165856854,0.00202106,67901.0,67900.0,2.10043606]
[1722165857058,1e-08,67901.0,67900.0,2.10043606]
[1722165857482,1e-08,67901.0,67900.0,2.12343606]
[1722165857900,1e-08,67901.0,67900.0,2.31209606]
[1722165858107,1e-08,67901.0,67900.0,2.54773606]
[1722165858319,0.0083,67902.0,67901.0,1.33725514]
[1722165858572,0.0083,67902.0,67901.0,1.73288206]
[1722165858861,0.0083,67902.0,67901.0,2.20415606]
[1722165859659,0.0083,67902.0,67901.0,2.22014822]
[1722165859917,9.9e-07,67913.0,67912.0,0.02688914]
[1722165860096,0.0083,67918.0,67917.0,0.38026014]
[1722165860301,0.0083,67918.0,67917.0,1.48262218]
[1722165860434,0.0083,67918.0,67917.0,1.95378418]
[1722165860637,0.0083,67918.0,67917.0,2.20378418]
[1722165860860,0.0083,67918.0,67917.0,1.95378418]
[1722165861036,0.0033,67918.0,67917.0,2.20378418]
[1722165861259,0.0033,67918.0,67917.0,2.21378418]
[1722165861425,0.0033,67918.0,67917.0,2.35468418]
[1722165862165,0.0033,67918.0,67917.0,1.69520318]
[1722165862362,0.0033,67918.0,67917.0,1.70920318]
[1722165862507,0.0033,67918.0,67917.0,1.58684371]
[1722165863118,0.0033,67918.0,67917.0,1.57284371]
[1722165863635,0.0033,67918.0,67917.0,1.58684371]
[1722165863776,0.0033,67918.0,67917.0,1.32437357]
[1722165863980,0.4854,67943.0,67917.0,1.32437357]
[1722165863981,0.45248965,67943.0,67924.0,0.07512979]
[1722165864314,0.11775,67940.0,67935.0,0.117759]
[1722165864519,0.23618374,67940.0,67935.0,0.117759]
[1722165864739,0.117753,67939.0,67936.0,0.00080762]
[1722165864922,0.117753,67939.0,67930.0,0.235536]
[1722165864923,0.11843374,67940.0,67930.0,0.235536]
[1722165865130,0.11843374,67940.0,67935.0,0.117759]
[1722165865304,0.11870458,67939.0,67930.0,0.235536]
[1722165865501,0.11870458,67939.0,67933.0,0.117762]
[1722165865502,0.117754,67938.0,67933.0,0.117762]
[1722165865701,0.23640641,67937.0,67935.0,0.003]
[1722165866516,0.353272,67936.0,67935.0,0.003]
[1722165866719,0.47192241,67936.0,67935.0,0.003]
[1722165866937,0.70743741,67936.0,67935.0,0.003]
[1722165867141,0.24785041,67936.0,67935.0,0.003]
[1722165867596,0.24785041,67936.0,67930.0,0.001]
[1722165867597,0.0617,67935.0,67933.0,0.235526]
[1722165867811,0.0617,67935.0,67934.0,0.117761]
[1722165868015,0.0617,67935.0,67931.0,0.235532]
[1722165868219,0.0675,67934.0,67932.0,0.117763]
[1722165868418,0.0617,67933.0,67932.0,0.117763]
[1722165868888,0.0617,67931.0,67929.0,0.117768]
[1722165869090,0.1292,67930.0,67929.0,0.117768]
[1722165869796,0.1292,67929.0,67928.0,0.0015542]
[1722165869998,0.0617,67928.0,67925.0,0.1169392]
[1722165870421,0.0617,67928.0,67926.0,0.00103235]
[1722165870580,0.0617,67928.0,67925.0,0.335553]
[1722165870764,0.0617,67928.0,67927.0,0.117773]
[1722165871300,0.08480363,67928.0,67927.0,0.3528846]
[1722165871503,0.08480363,67928.0,67927.0,0.1173386]
[1722165871660,0.0617,67928.0,67927.0,0.1173386]
[1722165871861,0.0617,67928.0,67927.0,0.3528846]
[1722165872084,0.0617,67928.0,67927.0,0.3628846]
[1722165873220,0.0617,67928.0,67927.0,0.3624457]
[1722165873590,0.0617,67928.0,67927.0,0.3704457]
[1722165874629,0.0617,67928.0,67927.0,0.6059917]
[1722165875030,0.08480363,67928.0,67927.0,0.6059917]
[1722165875159,0.0617,67928.0,67927.0,0.6059917]
[1722165879690,0.0617,67928.0,67927.0,0.8415377]
[1722165880357,0.0617,67928.0,67927.0,0.6059917]
[1722165881358,0.0617,67928.0,67927.0,0.6069047]
[1722165881661,0.93795121,67928.0,67927.0,0.018913]
[1722165881785,1.28040261,67928.0,67927.0,0.018913]
[1722165881984,1.30243764,67928.0,67927.0,0.018913]
[1722165882224,1.1922625,67928.0,67927.0,0.018913]
[1722165882424,1.32475667,67928.0,67927.0,0.018913]
[1722165882636,1.32558667,67928.0,67927.0,0.018913]
[1722165882786,1.32576753,67928.0,67927.0,0.008913]
[1722165883208,1.32576753,67928.0,67927.0,0.009913]
[1722165883209,1.62726945,67928.0,67927.0,0.009913]
[1722165883408,1.62726945,67928.0,67927.0,0.001913]
[1722165883658,1.62726945,67928.0,67927.0,0.002913]
[1722165883659,1.62826945,67928.0,67927.0,0.002913]
[1722165883868,1.49582218,67928.0,67927.0,0.002913]
[1722165884074,1.49582218,67928.0,67909.0,0.0015542]
[1722165884075,0.05,67913.0,67909.0,0.0015542]
[1722165884270,0.54526518,67928.0,67899.0,0.0015542]
[1722165884271,0.243802,67910.0,67899.0,0.0015542]
[1722165884491,0.243802,67910.0,67903.0,0.117814]
[1722165884492,0.23981539,67909.0,67903.0,0.117814]
[1722165884672,0.23981539,67909.0,67904.0,0.0015542]
[1722165884829,0.126306,67908.0,67904.0,0.0015542]
[1722165885030,0.12184774,67907.0,67904.0,0.0015542]
[1722165885232,0.12184774,67907.0,67904.0,0.1193662]
[1722165885578,0.12184774,67907.0,67904.0,0.117812]
[1722165885774,0.12184774,67907.0,67901.0,0.235636]
[1722165885978,0.12184774,67907.0,67904.0,0.121813]
[1722165886189,0.12184774,67907.0,67904.0,0.004]
[1722165886366,0.12184774,67907.0,67904.0,0.117813]
[1722165886957,0.18197291,67907.0,67904.0,0.004]
[1722165887134,0.18197291,67907.0,67904.0,0.121812]
[1722165887336,0.18197291,67907.0,67904.0,0.004]
[1722165887535,0.29978091,67907.0,67904.0,0.01]
[1722165887768,0.117811,67905.0,67904.0,0.01]
[1722165887960,0.12201039,67905.0,67904.0,0.01]
[1722165888213,0.23982139,67905.0,67904.0,0.01]
[1722165889064,0.12201039,67905.0,67904.0,0.004]
[1722165889266,0.19051039,67905.0,67904.0,0.013]
[1722165889409,0.37833485,67905.0,67904.0,0.013]
[1722165889593,0.60964439,67905.0,67904.0,0.013]
[1722165890003,0.60964439,67905.0,67904.0,0.009]
[1722165890434,0.61064439,67905.0,67904.0,0.015]
[1722165890911,0.37502139,67905.0,67904.0,0.015]
[1722165891138,0.66064439,67905.0,67904.0,0.015]
[1722165891345,0.61064439,67905.0,67904.0,0.015]
[1722165892048,0.72027003,67905.0,67904.0,0.015]
[1722165893993,0.61064439,67905.0,67904.0,0.015]
[1722165902164,0.89626739,67905.0,67904.0,0.015]
[1722165902836,0.84626739,67905.0,67904.0,0.015]
[1722165904066,0.18971039,67905.0,67904.0,0.015]
[1722165904236,0.002,67905.0,67904.0,0.368439]
[1722165905353,0.002,67905.0,67904.0,0.749965]
[1722165906321,0.002,67905.0,67904.0,0.514339]
[1722165907063,0.002,67905.0,67904.0,0.749965]
[1722165910497,0.002,67905.0,67904.0,0.684765]
[1722165910925,0.002,67905.0,67904.0,0.449139]
[1722165911128,0.002,67905.0,67904.0,0.684765]
[1722165912344,0.002,67905.0,67904.0,0.985591]
[1722165912546,0.0602,67921.0,67904.0,0.985591]
[1722165912547,0.02242537,67921.0,67917.0,0.11779]
[1722165912744,0.15013379,67920.0,67919.0,0.117787]
[1722165912945,0.15013119,67920.0,67919.0,0.117787]
[1722165913362,0.15013119,67920.0,67918.0,0.117788]
[1722165913565,0.02969279,67919.0,67918.0,0.117788]
[1722165913817,0.1204926,67919.0,67918.0,0.117788]
[1722165913965,0.15021519,67919.0,67918.0,0.117788]
[1722165915373,0.15021519,67919.0,67918.0,0.118788]
[1722165916097,0.15021519,67919.0,67918.0,0.119788]
[1722165916614,0.15021519,67919.0,67918.0,0.118788]
[1722165917023,0.1294926,67919.0,67918.0,0.119788]
[1722165917197,0.15893347,67919.0,67918.0,0.119788]
[1722165917825,0.14993347,67919.0,67918.0,0.118788]
[1722165918024,0.14993347,67919.0,67918.0,0.001]
[1722165918177,0.22090157,67919.0,67918.0,0.002]
[1722165918404,1.45021057,67919.0,67918.0,0.002]
[1722165918604,1.62871057,67919.0,67918.0,0.002]
[1722165918988,1.86428457,67919.0,67918.0,0.002]
[1722165919106,1.92795902,67919.0,67918.0,0.002]
[1722165919314,2.13801003,67919.0,67918.0,0.001]
[1722165919515,2.13801003,67919.0,67895.0,0.0015542]
[1722165919516,0.117821,67900.0,67895.0,0.0015542]
[1722165919720,0.235627,67904.0,67895.0,0.0015542]
[1722165919721,0.0675,67909.0,67897.0,0.07512979]
[1722165920119,0.15168599,67908.0,67907.0,0.19293779]
[1722165920323,0.12217304,67908.0,67907.0,0.19293779]
[1722165920524,0.12217304,67908.0,67907.0,0.42855379]
[1722165920849,0.12217304,67908.0,67907.0,0.66416979]
[1722165921059,0.12217304,67908.0,67907.0,0.89978579]
[1722165921407,0.57027665,67919.0,67914.0,0.117795]
[1722165921608,0.26748991,67918.0,67913.0,0.117797]
[1722165921820,0.02899152,67917.0,67916.0,0.117792]
[1722165922024,0.14970091,67917.0,67916.0,0.353377]
[1722165922223,0.12070939,67917.0,67916.0,0.669662]
[1722165922806,0.12070939,67917.0,67916.0,0.66960242]
[1722165923760,0.12170939,67917.0,67916.0,0.66960242]
[1722165924500,0.12770939,67917.0,67916.0,0.67060242]
[1722165925023,0.12170939,67917.0,67916.0,0.66960242]
[1722165925636,0.12170939,67917.0,67916.0,0.43401742]
[1722165925840,0.12170939,67917.0,67916.0,0.35331742]
[1722165926081,0.15083751,67917.0,67916.0,0.35331742]
[1722165926280,0.14983751,67917.0,67916.0,0.35331742]
[1722165926459,0.15183751,67917.0,67916.0,0.35331742]
[1722165926613,0.12270939,67917.0,67916.0,0.35331742]
[1722165926837,0.12070939,67917.0,67916.0,0.35487162]
[1722165927050,0.12170939,67917.0,67916.0,0.35331742]
[1722165927591,0.15093261,67917.0,67916.0,0.35331742]
[1722165928203,0.15093261,67917.0,67915.0,0.182993]
[1722165928415,0.15093261,67917.0,67916.0,0.353377]
[1722165928416,0.12170939,67917.0,67916.0,0.353377]
[1722165928625,0.19501423,67917.0,67916.0,0.353377]
[1722165929234,0.15088599,67917.0,67916.0,0.353377]
[1722165929644,0.0302189,67917.0,67916.0,0.824547]
[1722165929842,0.002,67917.0,67916.0,0.824547]
[1722165929998,0.003,67917.0,67916.0,0.824547]
[1722165930197,0.22892161,67928.0,67921.0,0.235567]
[1722165930198,0.04412824,67923.0,67921.0,0.235567]
[1722165930429,0.04412824,67923.0,67922.0,0.353346]
[1722165930745,0.04413713,67927.0,67923.0,0.0784]
[1722165930967,0.0291006,67926.0,67925.0,0.117776]
[1722165931099,0.14888872,67926.0,67925.0,0.117776]
[1722165931666,0.11978812,67926.0,67925.0,0.09466945]
[1722165931857,0.11978812,67926.0,67925.0,0.62847545]
[1722165932804,0.11978812,67926.0,67925.0,0.62447545]
[1722165933361,0.15066512,67926.0,67925.0,0.62447545]
[1722165933560,0.15766512,67926.0,67925.0,0.62547545]
[1722165933738,0.12678812,67926.0,67925.0,0.62547545]
[1722165933946,0.15766727,67926.0,67925.0,0.62547545]
[1722165934169,0.12678812,67926.0,67925.0,0.62547545]
[1722165934956,0.12678812,67926.0,67925.0,0.86102845]
[1722165934957,0.007,67926.0,67925.0,0.86102845]
[1722165936723,0.00083,67928.0,67927.0,0.588865]
[1722165937475,0.00083,67928.0,67927.0,0.585865]
[1722165939140,0.00083,67928.0,67927.0,0.588865]
[1722165939375,0.00083,67928.0,67927.0,0.592865]
[1722165939536,0.00083,67928.0,67927.0,0.357319]
[1722165941263,0.00083,67928.0,67927.0,0.007]
[1722165941264,0.28811821,67928.0,67927.0,0.007]
[1722165941432,0.35760128,67928.0,67927.0,0.007]
[1722165941776,0.54314428,67928.0,67927.0,0.007]
[1722165941965,0.82868728,67928.0,67927.0,0.007]
[1722165942107,0.82868728,67928.0,67927.0,0.004]
[1722165942303,0.117781,67923.0,67918.0,0.117788]
[1722165942509,0.27839062,67922.0,67916.0,0.235584]
[1722165942729,0.27839062,67922.0,67918.0,0.117787]
[1722165942730,0.16060862,67922.0,67918.0,0.117787]
[1722165943524,0.16060862,67922.0,67919.0,0.117787]
[1722165943933,0.03044929,67921.0,67919.0,0.117787]
[1722165944130,0.1747691,67920.0,67919.0,0.117787]
[1722165944542,0.1747691,67920.0,67918.0,0.002]
[1722165944543,0.04407115,67926.0,67925.0,0.353329]
[1722165944743,0.12045557,67928.0,67926.0,0.0789]
[1722165944942,0.12045557,67928.0,67927.0,0.419019]
[1722165945104,0.00083,67928.0,67927.0,0.654565]
[1722165945310,0.00083,67928.0,67927.0,0.733465]
[1722165946210,0.00083,67928.0,67927.0,0.497919]
[1722165946404,0.00083,67928.0,67927.0,0.733465]
[1722165946899,0.00083,67928.0,67927.0,0.736465]
[1722165947324,0.00083,67928.0,67927.0,0.738465]
[1722165947509,0.00083,67928.0,67927.0,0.745465]
[1722165949361,0.00083,67928.0,67927.0,0.740465]
[1722165949577,0.00083,67928.0,67927.0,0.747465]
[1722165949770,0.00083,67928.0,67927.0,0.983011]
[1722165950544,0.00083,67928.0,67927.0,0.747465]
[1722165951024,0.00083,67928.0,67927.0,0.983011]
[1722165951662,0.00083,67928.0,67927.0,0.747465]
[1722165952086,0.00083,67928.0,67927.0,0.983011]
[1722165952280,0.00083,67928.0,67927.0,0.747465]
[1722165954381,0.00083,67928.0,67927.0,0.983011]
[1722165956157,0.00083,67928.0,67927.0,1.218557]
[1722165957372,0.00083,67928.0,67927.0,1.211557]
[1722165957572,0.00083,67928.0,67927.0,1.311557]
[1722165957712,0.00083,67928.0,67927.0,1.318557]
[1722165957920,0.00083,67928.0,67927.0,1.304557]
[1722165958312,0.00083,67928.0,67927.0,1.323557]
[1722165958713,0.00083,67928.0,67927.0,1.317557]
[1722165959130,0.00083,67928.0,67927.0,1.331557]
[1722165959734,0.00083,67928.0,67927.0,1.317557]
[1722165960144,0.00083,67928.0,67927.0,1.304557]
[1722165960549,0.00083,67928.0,67927.0,1.318557]
[1722165960847,0.00083,67928.0,67927.0,1.304557]
[1722165961231,0.00083,67928.0,67927.0,1.332557]
[1722165961633,0.00083,67928.0,67927.0,1.568103]
[1722165961863,0.00083,67928.0,67927.0,1.69043068]
[1722165962062,0.00083,67928.0,67927.0,1.45488468]
[1722165962272,0.00083,67928.0,67927.0,1.50488468]
[1722165962666,0.00083,67928.0,67927.0,1.60514425]
[1722165962880,0.00083,67928.0,67927.0,1.71836257]
[1722165963848,0.00083,67928.0,67927.0,1.96836257]
[1722165964109,0.00083,67928.0,67927.0,2.0906835]
[1722165964288,0.00083,67928.0,67927.0,1.96836257]
[1722165965339,0.00083,67928.0,67927.0,1.97036257]
[1722165965470,0.00083,67928.0,67927.0,2.14268497]
[1722165966282,0.00083,67928.0,67927.0,2.12868497]
[1722165966479,0.00083,67928.0,67927.0,1.86268497]
[1722165966685,0.00083,67928.0,67927.0,1.87668497]
[1722165967073,0.00083,67928.0,67927.0,2.12623097]
[1722165967245,0.00083,67928.0,67927.0,2.37823097]
[1722165967481,0.00017773,67944.0,67943.0,1.059709]
[1722165967691,0.00017773,67944.0,67943.0,1.295209]
[1722165969374,0.00017773,67944.0,67943.0,1.299209]
[1722165969516,0.00017773,67944.0,67943.0,1.5347]
[1722165970050,0.00017773,67944.0,67943.0,1.299209]
[1722165971043,0.00017773,67944.0,67943.0,1.304209]
[1722165971360,0.00017773,67944.0,67943.0,1.300209]
[1722165971700,0.00017773,67944.0,67943.0,1.305209]
[1722165972169,0.00017773,67944.0,67943.0,1.064718]
[1722165972546,0.00017773,67944.0,67943.0,1.68655066]
[1722165972717,0.00017773,67944.0,67943.0,1.313209]
[1722165973132,0.00017773,67944.0,67943.0,1.308209]
[1722165973335,0.00017773,67944.0,67943.0,1.295209]
[1722165974600,0.00017773,67944.0,67943.0,1.304209]
[1722165974759,0.00017773,67944.0,67943.0,1.297209]
[1722165975303,0.00017773,67944.0,67943.0,1.309209]
[1722165975449,0.00017773,67944.0,67943.0,1.322209]
[1722165979191,0.00101773,67944.0,67943.0,1.322209]
[1722165995337,0.00101773,67944.0,67943.0,1.44451724]
[1722165997063,0.00101773,67944.0,67943.0,1.20902569]
[1722165998068,0.00101773,67944.0,67943.0,1.086718]
[1722165998686,0.00101773,67944.0,67943.0,0.715727]
[1722166000073,0.00101773,67944.0,67943.0,0.794327]
[1722166000249,0.00101773,67944.0,67943.0,0.715727]
[1722166001077,0.00101773,67944.0,67943.0,0.951218]
[1722166001276,0.00101773,67944.0,67943.0,0.715727]
[1722166001878,0.00101773,67944.0,67943.0,0.951218]
[1722166002306,0.00101773,67944.0,67943.0,0.715727]
[1722166002452,0.00101773,67944.0,67943.0,0.027]
[1722166002651,0.00101773,67944.0,67943.0,0.380236]
[1722166002964,0.02761794,67944.0,67943.0,0.127]
[1722166003200,0.00101773,67944.0,67943.0,0.480236]
[1722166003393,0.00101773,67944.0,67943.0,0.715727]
[1722166008450,0.00101773,67944.0,67943.0,0.027]
[1722166008646,0.30426243,67944.0,67943.0,0.027]
[1722166008848,0.47040922,67944.0,67943.0,0.027]
[1722166009011,0.61758337,67944.0,67943.0,0.027]
[1722166009208,0.49251048,67944.0,67943.0,0.027]
[1722166009410,0.72799848,67944.0,67943.0,0.013]
[1722166009595,0.72799848,67944.0,67938.0,0.117753]
[1722166009836,0.04415416,67939.0,67938.0,0.117753]
[1722166010045,0.07047849,67939.0,67938.0,0.117753]
[1722166010517,0.0441433,67941.0,67938.0,0.117753]
[1722166010678,0.0441433,67941.0,67928.0,0.1]
[1722166010679,0.22392541,67939.0,67933.0,0.117761]
[1722166010889,0.223352,67939.0,67938.0,0.002]
[1722166011259,0.223352,67939.0,67932.0,0.117764]
[1722166011260,0.117756,67937.0,67932.0,0.117764]
[1722166011480,0.117756,67937.0,67929.0,0.235539]
[1722166011481,0.08804957,67937.0,67930.0,0.235535]
[1722166011687,0.08804957,67937.0,67932.0,0.117764]
[1722166011688,0.0675,67936.0,67932.0,0.117764]
[1722166011959,0.11776,67935.0,67928.0,0.000924]
[1722166012204,0.11908378,67934.0,67930.0,0.117768]
[1722166012554,0.11908378,67934.0,67929.0,0.117769]
[1722166012760,0.0381,67933.0,67930.0,0.117767]
[1722166012982,0.15718378,67933.0,67930.0,0.117767]
[1722166013197,0.15718378,67933.0,67932.0,0.011]
[1722166013717,0.15718378,67933.0,67930.0,0.117767]
[1722166013858,0.21997966,67933.0,67929.0,0.131768]
[1722166014072,0.21997966,67933.0,67932.0,0.01]
[1722166014284,0.15718378,67933.0,67932.0,0.01]
[1722166014525,0.15718378,67933.0,67932.0,0.014]
[1722166014722,0.15718378,67933.0,67930.0,0.117768]
[1722166014898,0.15718378,67933.0,67928.0,0.000924]
[1722166014899,0.0675,67931.0,67928.0,0.000924]
[1722166015105,0.11930049,67930.0,67928.0,0.000924]
[1722166016180,0.11930049,67930.0,67929.0,0.014]
[1722166016381,0.11930049,67930.0,67928.0,0.000924]
[1722166016808,0.11930049,67930.0,67928.0,0.012924]
[1722166017016,0.11777,67929.0,67928.0,0.000924]
[1722166017183,0.11935467,67929.0,67928.0,0.183495]
[1722166017322,0.235509,67938.0,67928.0,0.183495]
[1722166017323,0.04408014,67940.0,67931.0,0.23553]
[1722166017554,0.11865041,67939.0,67938.0,0.117754]
[1722166018601,0.11865041,67939.0,67938.0,0.353262]
[1722166020044,0.11865041,67939.0,67938.0,0.356262]
[1722166020259,0.11865041,67939.0,67938.0,0.120754]
[1722166020402,0.11865041,67939.0,67938.0,0.097654]
[1722166020602,0.11865041,67939.0,67938.0,0.003]
[1722166020807,0.11865041,67939.0,67938.0,0.120754]
[1722166021208,0.11865041,67939.0,67938.0,0.356262]
[1722166021414,0.11865041,67939.0,67938.0,0.120754]
[1722166023298,0.11865041,67939.0,67938.0,0.356262]
[1722166024312,0.11865041,67939.0,67938.0,0.59177]
[1722166024859,0.11865041,67939.0,67938.0,0.356262]
[1722166025397,0.11865041,67939.0,67938.0,0.59177]
[1722166025782,0.11865041,67939.0,67938.0,0.66787]
[1722166026189,0.11865041,67939.0,67938.0,0.432362]
[1722166028029,0.11865041,67939.0,67938.0,0.356262]
[1722166028251,0.11865041,67939.0,67938.0,0.003]
[1722166028448,0.11865041,67939.0,67938.0,0.120754]
[1722166028660,0.55812422,67939.0,67938.0,0.003]
[1722166028826,0.33071271,67939.0,67938.0,0.003]
[1722166030345,0.88982271,67939.0,67938.0,0.003]
[1722166030547,0.89837898,67939.0,67938.0,0.003]
[1722166030750,1.08982271,67939.0,67938.0,0.003]
[1722166031564,1.37532771,67939.0,67938.0,0.003]
[1722166031798,1.58275984,67939.0,67938.0,0.003]
[1722166031940,1.60945838,67939.0,67938.0,0.003]
[1722166032384,1.60983033,67939.0,67938.0,0.003]
[1722166032627,1.60983033,67939.0,67938.0,0.002]
[1722166032830,0.63885,67929.0,67928.0,0.000924]
[1722166033029,0.78514725,67929.0,67928.0,0.000924]
[1722166033543,1.02068725,67929.0,67928.0,0.000924]
[1722166033745,0.78514725,67929.0,67928.0,0.000924]
[1722166034158,0.78458111,67929.0,67928.0,0.000924]
[1722166034547,1.10961177,67929.0,67928.0,0.000924]